[Event "SixDays One Year GM-B 2023"]
[Site "Budapest"]
[Date "2023.09.20"]
[Round "4.1"]
[White "Grover, Sahaj"]
[Black "Baum, Jonasz"]
[Result "1-0"]
[ECO "B87"]
[WhiteElo "2488"]
[BlackElo "2429"]
[Annotator "ChessBase"]
[PlyCount "139"]
[EventDate "2023.09.18"]
[EventType "tourn"]
[EventCountry "HUN"]
[SourceTitle "playchess.com"]
[Source "ChessBase"]
[SourceQuality "1"]
[TimeControl "5400+30"]

1. e4 {[%emt 0:17:00]} c5 {[%emt 0:00:14]} 2. Nf3 {[%emt 0:00:23]} d6 {[%emt 0:00:04]} 3. d4 {[%emt 0:00:05]} cxd4 {[%emt 0:00:02]} 4. Nxd4 {[%emt 0:00:05]} Nf6 {[%emt 0:00:04]} 5. Nc3 {[%emt 0:00:05]} a6 {[%emt 0:00:04]} 6. Bc4 {[%emt 0:00:03]} e6 {[%emt 0:00:27]} 7. Bb3 {[%emt 0:00:05]} b5 {[%emt 0:00:04]} 8. Be3 {[%emt 0:01:43]} Be7 {[%emt 0:01:09]} 9. a3 {[%emt 0:00:53]} Qc7 {[%emt 0:06:41]} 10. Qe2 {[%emt 0:03:08]} Nc6 {[%emt 0:04:47]} 11. O-O-O {[%emt 0:10:57]} Na5 {[%emt 0:10:19]} 12. Kb1 {[%emt 0:03:33]} Rb8 {[%emt 0:01:36]} 13. g4 {[%emt 0:07:43]} Nc4 {[%emt 0:13:29]} 14. Bxc4 {[%emt 0:00:49]} bxc4 {[%emt 0:00:06]} 15. Ka1 {[%emt 0:05:02]} Bb7 {[%emt 0:09:43]} 16. f3 {[%emt 0:00:52]} g6 {[%emt 0:03:20]} 17. Qd2 {[%emt 0:05:24]} h5 {[%emt 0:03:42]} 18. h3 {[%emt 0:00:05]} Ba8 {[%emt 0:03:30]} 19. Nde2 {[%emt 0:02:43]} Qa5 {[%emt 0:04:36]} 20. Bf4 {[%emt 0:03:33]} Rb6 {[%emt 0:01:59]} 21. Rhg1 {[%emt 0:04:44]} Nd7 {[%emt 0:06:05]} 22. Be3 {[%emt 0:03:19]} Rb8 {[%emt 0:04:34]} 23. Ba7 {[%emt 0:09:07]} Rb7 {[%emt 0:02:14]} 24. Bd4 {[%emt 0:00:08]} Ne5 {[%emt 0:02:50]} 25. Qe3 {[%emt 0:04:05]} hxg4 {[%emt 0:02:39]} 26. hxg4 {[%emt 0:00:06]} g5 {[%emt 0:00:39]} 27. Rh1 {[%emt 0:00:39]} Rg8 {[%emt 0:00:04]} 28. Nb1 {[%emt 0:03:26]} Nc6 {[%emt 0:01:07]} 29. Bc3 {[%emt 0:01:20]} Qb6 {[%emt 0:00:33]} 30. Qxb6 {[%emt 0:01:14]} Rxb6 {[%emt 0:00:01]} 31. Nd2 {[%emt 0:00:08]} d5 {[%emt 0:00:39]} 32. exd5 {[%emt 0:00:05]} exd5 {[%emt 0:00:03]} 33. Rh6 {[%emt 0:00:10]} Bd8 {[%emt 0:01:35]} 34. Rd6 {[%emt 0:03:56]} Be7 {[%emt 0:07:38]} 35. Rxd5 {[%emt 0:03:41]} Nb4 {[%emt 0:00:01]} 36. Ra5 {[%emt 0:00:23]} Nxc2+ {[%emt 0:00:04]} 37. Ka2 {[%emt 0:00:03]} Ne3 {[%emt 0:01:41]} 38. Re1 {[%emt 0:00:55]} Nd5 {[%emt 0:00:55]} 39. Nd4 {[%emt 0:00:13]} Nxc3+ {[%emt 0:01:12]} 40. bxc3 {[%emt 0:00:02]} Kd8 {[%emt 0:02:49]} 41. Nxc4 {[%emt 0:00:56]} Rf6 {[%emt 0:00:23]} 42. Rae5 {[%emt 0:01:00]} Bd6 {[%emt 0:00:24]} 43. Nxd6 {[%emt 0:00:18]} Rxd6 {[%emt 0:00:02]} 44. Kb3 {[%emt 0:01:50]} Kc7 {[%emt 0:01:10]} 45. Rf5 {[%emt 0:00:31]} Bd5+ {[%emt 0:02:42]} 46. c4 {[%emt 0:01:33]} Be6 {[%emt 0:00:01]} 47. Nxe6+ {[%emt 0:00:07]} fxe6 {[%emt 0:00:32]} 48. Rf7+ {[%emt 0:00:04]} Rd7 {[%emt 0:01:55]} 49. Rf6 {[%emt 0:00:20]} Rd3+ {[%emt 0:01:04]} 50. Kb4 {[%emt 0:00:01]} Rb8+ {[%emt 0:02:11]} 51. Kc5 {[%emt 0:00:06]} Kd7 {[%emt 0:00:43]} 52. Rf7+ {[%emt 0:00:51]} Ke8 {[%emt 0:00:02]} 53. Rc7 {[%emt 0:00:27]} Rxa3 {[%emt 0:00:38]} 54. Rxe6+ {[%emt 0:01:48]} Kf8 {[%emt 0:00:01]} 55. Rf6+ {[%emt 0:01:53]} Kg8 {[%emt 0:00:01]} 56. Ra7 {[%emt 0:00:45]} Rc8+ {[%emt 0:01:00]} 57. Kb4 {[%emt 0:00:57]} Ra1 {[%emt 0:00:01]} 58. Raxa6 {[%emt 0:00:19]} Rb1+ {[%emt 0:00:05]} 59. Kc3 {[%emt 0:00:03]} Rc1+ {[%emt 0:00:04]} 60. Kd3 {[%emt 0:00:03]} R8xc4 {[%emt 0:00:38]} 61. Rg6+ {[%emt 0:02:27]} Kh7 {[%emt 0:01:46]} 62. Rxg5 {[%emt 0:00:09]} R4c3+ {[%emt 0:00:45]} 63. Ke4 {[%emt 0:00:10]} Re1+ {[%emt 0:00:28]} 64. Kf4 {[%emt 0:00:05]} Rf1 {[%emt 0:00:07]} 65. Rh5+ {[%emt 0:00:04]} Kg7 {[%emt 0:00:02]} 66. Rh3 {[%emt 0:00:06]} Rb3 {[%emt 0:01:21]} 67. Re6 {[%emt 0:00:08]} Kf7 {[%emt 0:00:28]} 68. Re3 {[%emt 0:00:19]} Rb5 {[%emt 0:00:12]} 69. Rh7+ {[%emt 0:00:16]} Kg6 {[%emt 0:00:14]} 70. Rhe7 {[%emt 0:00:05]} 1-0

[Event "SixDays One Year GM-B 2023"]
[Site "Budapest"]
[Date "2023.09.20"]
[Round "4.2"]
[White "Varga, Zoltan"]
[Black "Fodor, Tamas Jr."]
[Result "1/2-1/2"]
[ECO "D45"]
[WhiteElo "2363"]
[BlackElo "2486"]
[Annotator "ChessBase"]
[PlyCount "30"]
[EventDate "2023.09.18"]
[EventType "tourn"]
[EventCountry "HUN"]
[SourceTitle "playchess.com"]
[Source "ChessBase"]
[SourceQuality "1"]
[TimeControl "5400+30"]

1. Nf3 Nf6 2. d4 d5 3. c4 c6 4. Nc3 e6 5. e3 Nbd7 6. Qc2 Bd6 7. Be2 O-O 8. O-O dxc4 9. Bxc4 b5 10. Bd3 Bb7 11. a4 a6 12. Rd1 Qe7 13. Qe2 b4 14. Ne4 Nxe4 15. Bxe4 Nf6 1/2-1/2

[Event "SixDays One Year GM-B 2023"]
[Site "Budapest"]
[Date "2023.09.20"]
[Round "4.3"]
[White "Yeganegi, Barad"]
[Black "Siddharth, Jagadeesh"]
[Result "0-1"]
[ECO "A53"]
[WhiteElo "2261"]
[BlackElo "2391"]
[Annotator "ChessBase"]
[PlyCount "109"]
[EventDate "2023.09.18"]
[EventType "tourn"]
[EventCountry "HUN"]
[SourceTitle "playchess.com"]
[Source "ChessBase"]
[SourceQuality "1"]
[TimeControl "5400+30"]

1. d4 {[%emt 0:00:04]} Nf6 {[%emt 0:07:04]} 2. c4 {[%emt 0:00:05]} d6 {[%emt 0:00:05]} 3. Nc3 {[%emt 0:00:08]} Nbd7 {[%emt 0:00:05]} 4. e4 {[%emt 0:00:13]} e5 {[%emt 0:00:07]} 5. Nf3 {[%emt 0:00:06]} g6 {[%emt 0:00:05]} 6. Be2 {[%emt 0:00:27]} Bg7 {[%emt 0:00:07]} 7. dxe5 {[%emt 0:00:11]} dxe5 {[%emt 0:00:54]} 8. O-O {[%emt 0:00:15]} O-O {[%emt 0:00:06]} 9. Qc2 {[%emt 0:00:25]} c6 {[%emt 0:01:24]} 10. b4 {[%emt 0:01:58]} a5 {[%emt 0:05:25]} 11. b5 {[%emt 0:00:13]} Re8 {[%emt 0:00:56]} 12. bxc6 {[%emt 0:10:49]} bxc6 {[%emt 0:00:11]} 13. Ba3 {[%emt 0:00:43]} Bf8 {[%emt 0:06:42]} 14. Bc1 {[%emt 0:09:09]} Nc5 {[%emt 0:17:11]} 15. Be3 {[%emt 0:09:58]} Bg4 {[%emt 0:01:08]} 16. Bxc5 {[%emt 0:04:46]} Bxc5 {[%emt 0:00:11]} 17. Na4 {[%emt 0:00:20]} Bxf3 {[%emt 0:02:19]} 18. Bxf3 {[%emt 0:02:47]} Qe7 {[%emt 0:00:50]} 19. Rfd1 {[%emt 0:03:09]} h5 {[%emt 0:00:01]} 20. h4 {[%emt 0:02:56]} Bd4 {[%emt 0:03:31]} 21. Rab1 {[%emt 0:00:59]} Nh7 {[%emt 0:00:07]} 22. g3 {[%emt 0:00:54]} Nf8 {[%emt 0:00:03]} 23. c5 {[%emt 0:03:01]} Rab8 {[%emt 0:05:43]} 24. Rb6 {[%emt 0:13:38]} Qf6 {[%emt 0:02:35]} 25. Kg2 {[%emt 0:03:54]} Nd7 {[%emt 0:00:03]} 26. Rb3 {[%emt 0:06:24]} Rxb3 {[%emt 0:06:28]} 27. axb3 {[%emt 0:00:20]} Rb8 {[%emt 0:00:01]} 28. Rd3 {[%emt 0:03:34]} Kg7 {[%emt 0:07:34]} 29. Bd1 {[%emt 0:10:10]} Qe7 {[%emt 0:02:10]} 30. Be2 {[%emt 0:01:34]} Nf6 {[%emt 0:00:01]} 31. Bf3 {[%emt 0:02:01]} Rb5 {[%emt 0:02:07]} 32. Kh2 {[%emt 0:04:20]} Nd7 {[%emt 0:06:40]} 33. Be2 {[%emt 0:00:22]} Rb4 {[%emt 0:00:02]} 34. Kg2 {[%emt 0:02:37]} Nf6 {[%emt 0:00:31]} 35. Bf3 {[%emt 0:00:09]} Qe6 {[%emt 0:00:01]} 36. Nb6 {[%emt 0:02:29]} Rb5 {[%emt 0:05:53]} 37. Na4 {[%emt 0:00:05]} Ng4 {[%emt 0:01:28]} 38. Bxg4 {[%emt 0:00:43]} hxg4 {[%emt 0:00:02]} 39. Qd1 {[%emt 0:01:40]} Rb7 {[%emt 0:01:34]} 40. Qc2 {[%emt 0:00:30]} f5 {[%emt 0:01:41]} 41. exf5 {[%emt 0:02:12]} Qxf5 {[%emt 0:00:01]} 42. Qe2 {[%emt 0:00:16]} Bxf2 {[%emt 0:03:31]} 43. Nb6 {[%emt 0:00:51]} e4 {[%emt 0:06:33]} 44. Qb2+ {[%emt 0:00:13]} Kh7 {[%emt 0:00:27]} 45. Nd7 {[%emt 0:00:33]} exd3 {[%emt 0:03:28]} 46. Nf6+ {[%emt 0:00:07]} Kh8 {[%emt 0:00:24]} 47. Nxg4+ {[%emt 0:00:05]} Rg7 {[%emt 0:00:10]} 48. Nxf2 {[%emt 0:00:16]} Qd5+ {[%emt 0:00:14]} 49. Kf1 {[%emt 0:00:53]} d2 {[%emt 0:01:13]} 50. Ke2 {[%emt 0:00:04]} Kh7 {[%emt 0:00:11]} 51. Qxd2 {[%emt 0:01:26]} Re7+ {[%emt 0:00:06]} 52. Kd1 {[%emt 0:00:03]} Qxb3+ {[%emt 0:00:07]} 53. Kc1 {[%emt 0:00:05]} Qc4+ {[%emt 0:00:08]} 54. Kd1 {[%emt 0:00:13]} Qf1+ {[%emt 0:00:05]} 55. Qe1 0-1

[Event "SixDays One Year GM-B 2023"]
[Site "Budapest"]
[Date "2023.09.20"]
[Round "4.4"]
[White "Xiao, Tong"]
[Black "Palczert, Matyas"]
[Result "1-0"]
[ECO "B90"]
[WhiteElo "2452"]
[BlackElo "2340"]
[Annotator "ChessBase"]
[PlyCount "77"]
[EventDate "2023.09.18"]
[EventType "tourn"]
[EventCountry "HUN"]
[SourceTitle "playchess.com"]
[Source "ChessBase"]
[SourceQuality "1"]
[TimeControl "5400+30"]

1. e4 {[%emt 0:00:01]} c5 {[%emt 0:01:27]} 2. Nf3 {[%emt 0:00:02]} d6 {[%emt 0:00:12]} 3. d4 {[%emt 0:00:03]} cxd4 {[%emt 0:00:13]} 4. Nxd4 {[%emt 0:00:02]} Nf6 {[%emt 0:00:26]} 5. Nc3 {[%emt 0:00:02]} a6 {[%emt 0:00:30]} 6. Rg1 {[%emt 0:00:06]} e5 {[%emt 0:01:26]} 7. Nb3 {[%emt 0:00:02]} h5 {[%emt 0:08:54]} 8. Bg5 {[%emt 0:00:07]} Be6 {[%emt 0:01:04]} 9. Qd2 {[%emt 0:00:11]} Nbd7 {[%emt 0:02:19]} 10. f4 {[%emt 0:00:23]} Rc8 {[%emt 0:02:59]} 11. O-O-O {[%emt 0:00:12]} Be7 {[%emt 0:06:17]} 12. Bd3 {[%emt 0:00:24]} b5 {[%emt 0:05:46]} 13. Kb1 {[%emt 0:12:18]} Qc7 {[%emt 0:03:29]} 14. h3 {[%emt 0:06:48]} exf4 {[%emt 0:05:17]} 15. Bxf4 {[%emt 0:06:34]} Ne5 {[%emt 0:04:04]} 16. Nd4 {[%emt 0:11:43]} Nxd3 {[%emt 0:10:56]} 17. cxd3 {[%emt 0:03:59]} Qa5 {[%emt 0:02:46]} 18. Nxe6 {[%emt 0:01:51]} fxe6 {[%emt 0:00:11]} 19. g4 {[%emt 0:01:11]} hxg4 {[%emt 0:02:17]} 20. hxg4 {[%emt 0:00:13]} b4 {[%emt 0:11:26]} 21. Ne2 {[%emt 0:00:14]} e5 {[%emt 0:01:42]} 22. Bg5 {[%emt 0:01:43]} Kd7 {[%emt 0:05:16]} 23. Ng3 {[%emt 0:03:18]} Qb5 {[%emt 0:07:13]} 24. Bxf6 {[%emt 0:09:08]} Bxf6 {[%emt 0:01:05]} 25. g5 {[%emt 0:00:27]} Be7 {[%emt 0:00:28]} 26. Nf5 {[%emt 0:02:34]} b3 {[%emt 0:03:09]} 27. axb3 {[%emt 0:00:38]} Qxb3 {[%emt 0:00:36]} 28. d4 {[%emt 0:05:36]} exd4 {[%emt 0:05:40]} 29. Nxe7 {[%emt 0:06:17]} Kxe7 {[%emt 0:01:52]} 30. Qxd4 {[%emt 0:00:17]} Ke8 {[%emt 0:03:30]} 31. Rg2 {[%emt 0:09:27]} Qe6 {[%emt 0:00:32]} 32. Rgd2 {[%emt 0:02:01]} Rc4 {[%emt 0:01:57]} 33. Qxd6 {[%emt 0:00:57]} Qxd6 {[%emt 0:00:34]} 34. Rxd6 {[%emt 0:00:02]} Rh2 {[%emt 0:00:33]} 35. g6 {[%emt 0:00:55]} Rxe4 {[%emt 0:00:32]} 36. Rxa6 {[%emt 0:00:07]} Ke7 {[%emt 0:00:12]} 37. Rf1 {[%emt 0:00:10]} Rd4 {[%emt 0:01:39]} 38. Rf7+ {[%emt 0:00:13]} Ke8 {[%emt 0:00:04]} 39. Rxg7 {[%emt 0:01:14]} 1-0

[Event "SixDays One Year GM-B 2023"]
[Site "Budapest"]
[Date "2023.09.20"]
[Round "4.5"]
[White "Lee, Jun Hyeok"]
[Black "Velikanov, Alexander"]
[Result "0-1"]
[ECO "A47"]
[WhiteElo "2378"]
[BlackElo "2327"]
[Annotator "ChessBase"]
[PlyCount "82"]
[EventDate "2023.09.18"]
[EventType "tourn"]
[EventCountry "HUN"]
[SourceTitle "playchess.com"]
[Source "ChessBase"]
[SourceQuality "1"]
[TimeControl "5400+30"]

1. d4 {[%emt 0:00:03]} Nf6 {[%emt 0:05:56]} 2. Nf3 {[%emt 0:00:03]} b6 {[%emt 0:00:05]} 3. e3 {[%emt 0:01:18]} Bb7 {[%emt 0:00:16]} 4. Bd3 {[%emt 0:00:09]} g6 {[%emt 0:00:45]} 5. O-O {[%emt 0:02:16]} Bg7 {[%emt 0:01:41]} 6. c4 {[%emt 0:00:44]} O-O {[%emt 0:01:14]} 7. Nc3 {[%emt 0:00:17]} d5 {[%emt 0:00:23]} 8. cxd5 {[%emt 0:04:15]} Nxd5 {[%emt 0:00:07]} 9. Nxd5 {[%emt 0:02:14]} Qxd5 {[%emt 0:00:20]} 10. Qe2 {[%emt 0:01:14]} Qd8 {[%emt 0:24:10]} 11. Rd1 {[%emt 0:02:03]} Nd7 {[%emt 0:04:59]} 12. e4 {[%emt 0:01:33]} e5 {[%emt 0:04:17]} 13. Bg5 {[%emt 0:10:23]} Qe8 {[%emt 0:01:49]} 14. d5 {[%emt 0:01:05]} Nc5 {[%emt 0:04:07]} 15. Be3 {[%emt 0:06:45]} Nxd3 {[%emt 0:02:22]} 16. Qxd3 {[%emt 0:00:04]} c6 {[%emt 0:11:32]} 17. d6 {[%emt 0:09:22]} Qd7 {[%emt 0:00:01]} 18. b4 {[%emt 0:02:39]} Kh8 {[%emt 0:05:44]} 19. Qc4 {[%emt 0:06:43]} f5 {[%emt 0:03:36]} 20. exf5 {[%emt 0:12:17]} gxf5 {[%emt 0:00:14]} 21. Bg5 {[%emt 0:00:36]} c5 {[%emt 0:12:44]} 22. Be7 {[%emt 0:04:04]} Bxf3 {[%emt 0:00:05]} 23. Bxf8 {[%emt 0:01:25]} Rxf8 {[%emt 0:00:12]} 24. gxf3 {[%emt 0:00:24]} e4 {[%emt 0:00:07]} 25. Rac1 {[%emt 0:03:13]} Bd4 {[%emt 0:00:02]} 26. Rxd4 {[%emt 0:10:10]} Qg7+ {[%emt 0:01:11]} 27. Kh1 {[%emt 0:00:09]} cxd4 {[%emt 0:05:57]} 28. Qe6 {[%emt 0:07:00]} d3 {[%emt 0:02:43]} 29. Rg1 {[%emt 0:01:36]} d2 {[%emt 0:00:29]} 30. Qb3 {[%emt 0:05:02]} Qd4 {[%emt 0:01:25]} 31. d7 {[%emt 0:00:44]} f4 {[%emt 0:03:28]} 32. fxe4 {[%emt 0:02:39]} Qxe4+ {[%emt 0:00:01]} 33. f3 {[%emt 0:00:05]} Qd4 {[%emt 0:00:07]} 34. h3 {[%emt 0:01:17]} Rd8 {[%emt 0:00:57]} 35. Rd1 {[%emt 0:03:16]} Rxd7 {[%emt 0:01:34]} 36. Qe6 {[%emt 0:00:36]} Rg7 {[%emt 0:01:03]} 37. Qe4 {[%emt 0:00:43]} Qxe4 {[%emt 0:01:00]} 38. fxe4 {[%emt 0:00:01]} Rd7 {[%emt 0:00:11]} 39. Kg2 {[%emt 0:00:20]} Rd3 {[%emt 0:00:06]} 40. h4 {[%emt 0:00:52]} Kg7 {[%emt 0:00:14]} 41. Kf2 {[%emt 0:00:17]} f3 {[%emt 0:00:07]} 0-1

[Event "SixDays One Year GM-B 2023"]
[Site "Budapest"]
[Date "2023.09.20"]
[Round "5.2"]
[White "Palczert, Matyas"]
[Black "Lee, Jun Hyeok"]
[Result "1/2-1/2"]
[ECO "B90"]
[WhiteElo "2340"]
[BlackElo "2378"]
[Annotator "ChessBase"]
[PlyCount "118"]
[EventDate "2023.09.18"]
[EventType "tourn"]
[EventCountry "HUN"]
[SourceTitle "playchess.com"]
[Source "ChessBase"]
[SourceQuality "1"]
[TimeControl "5400+30"]

1. e4 {[%emt 0:00:04]} c5 {[%emt 0:03:15]} 2. Nf3 {[%emt 0:00:09]} d6 {[%emt 0:00:02]} 3. d4 {[%emt 0:00:09]} cxd4 {[%emt 0:00:04]} 4. Nxd4 {[%emt 0:00:07]} Nf6 {[%emt 0:00:03]} 5. Nc3 {[%emt 0:00:12]} a6 {[%emt 0:00:02]} 6. Bd3 {[%emt 0:00:26]} e5 {[%emt 0:00:49]} 7. Nde2 {[%emt 0:00:21]} Be7 {[%emt 0:00:03]} 8. O-O {[%emt 0:00:20]} O-O {[%emt 0:00:03]} 9. Ng3 {[%emt 0:00:42]} Be6 {[%emt 0:01:01]} 10. Nd5 {[%emt 0:00:28]} Nxd5 {[%emt 0:00:07]} 11. exd5 {[%emt 0:00:10]} Bxd5 {[%emt 0:00:02]} 12. Bxh7+ {[%emt 0:00:17]} Kxh7 {[%emt 0:00:03]} 13. Qxd5 {[%emt 0:00:11]} Nc6 {[%emt 0:00:01]} 14. Be3 {[%emt 0:06:57]} f5 {[%emt 0:05:14]} 15. f4 {[%emt 0:02:45]} g6 {[%emt 0:00:42]} 16. Rad1 {[%emt 0:02:19]} Qc7 {[%emt 0:06:09]} 17. a3 {[%emt 0:12:01]} Rad8 {[%emt 0:24:41]} 18. Ne2 {[%emt 0:02:19]} Na5 {[%emt 0:02:51]} 19. Nc3 {[%emt 0:04:57]} Nc4 {[%emt 0:01:05]} 20. Bf2 {[%emt 0:04:15]} Nxb2 {[%emt 0:21:07]} 21. Rb1 {[%emt 0:00:36]} Qxc3 {[%emt 0:01:45]} 22. Qxb7 {[%emt 0:00:13]} Rf7 {[%emt 0:01:45]} 23. Rxb2 {[%emt 0:01:58]} Kg7 {[%emt 0:02:34]} 24. Rb6 {[%emt 0:04:37]} Bf6 {[%emt 0:10:12]} 25. Qf3 {[%emt 0:06:21]} Qxc2 {[%emt 0:01:41]} 26. fxe5 {[%emt 0:00:37]} dxe5 {[%emt 0:00:43]} 27. Rxa6 {[%emt 0:02:05]} e4 {[%emt 0:01:50]} 28. Qf4 {[%emt 0:03:39]} Rd1 {[%emt 0:01:10]} 29. Be3 {[%emt 0:05:00]} Rxf1+ {[%emt 0:09:14]} 30. Kxf1 {[%emt 0:02:23]} Qc4+ {[%emt 0:02:26]} 31. Kg1 {[%emt 0:00:07]} g5 {[%emt 0:01:31]} 32. Qf1 {[%emt 0:00:09]} Qb3 {[%emt 0:01:29]} 33. Qc1 {[%emt 0:01:49]} f4 {[%emt 0:01:22]} 34. Rxf6 {[%emt 0:01:25]} Rxf6 {[%emt 0:01:49]} 35. Bd4 {[%emt 0:00:02]} e3 {[%emt 0:00:33]} 36. Bxf6+ {[%emt 0:11:20]} Kxf6 {[%emt 0:00:00]} 37. Kf1 {[%emt 0:00:36]} g4 {[%emt 0:01:00]} 38. Ke1 {[%emt 0:05:00]} Qd5 {[%emt 0:00:23]} 39. Qc3+ {[%emt 0:01:48]} Kg6 {[%emt 0:00:10]} 40. Qc2+ {[%emt 0:00:10]} Kh6 {[%emt 0:00:10]} 41. Qc3 {[%emt 0:00:43]} Kg6 {[%emt 0:01:08]} 42. Qc2+ {[%emt 0:00:11]} Qf5 {[%emt 0:00:35]} 43. Qxf5+ {[%emt 0:05:33]} Kxf5 {[%emt 0:00:01]} 44. a4 {[%emt 0:00:07]} f3 {[%emt 0:00:26]} 45. gxf3 {[%emt 0:00:05]} gxf3 {[%emt 0:00:02]} 46. a5 {[%emt 0:00:08]} Ke4 {[%emt 0:01:32]} 47. a6 {[%emt 0:00:15]} Kd3 {[%emt 0:00:14]} 48. a7 {[%emt 0:00:08]} f2+ {[%emt 0:00:02]} 49. Kf1 {[%emt 0:00:03]} e2+ {[%emt 0:00:25]} 50. Kxf2 Kd2 51. a8=Q {[%emt 0:00:20]} e1=Q+ {[%emt 0:00:03]} 52. Kg2 {[%emt 0:00:08]} Qe2+ {[%emt 0:00:36]} 53. Kg3 {[%emt 0:00:12]} Qe5+ {[%emt 0:01:05]} 54. Kg4 {[%emt 0:00:18]} Qg7+ {[%emt 0:00:53]} 55. Kf3 {[%emt 0:00:17]} Qf6+ {[%emt 0:00:37]} 56. Kg2 {[%emt 0:01:07]} Qg6+ {[%emt 0:00:10]} 57. Kf2 {[%emt 0:00:37]} Qb6+ {[%emt 0:00:08]} 58. Kf3 {[%emt 0:01:49]} Qf6+ {[%emt 0:00:18]} 59. Ke4 {[%emt 0:00:34]} Qe6+ {[%emt 0:01:17]} 1/2-1/2

[Event "SixDays One Year GM-B 2023"]
[Site "Budapest"]
[Date "2023.09.20"]
[Round "5.3"]
[White "Siddharth, Jagadeesh"]
[Black "Xiao, Tong"]
[Result "1/2-1/2"]
[ECO "B52"]
[WhiteElo "2391"]
[BlackElo "2452"]
[Annotator "ChessBase"]
[PlyCount "31"]
[EventDate "2023.09.18"]
[EventType "tourn"]
[EventCountry "HUN"]
[SourceTitle "playchess.com"]
[Source "ChessBase"]
[SourceQuality "1"]
[TimeControl "5400+30"]

1. e4 {[%emt 0:03:24]} c5 {[%emt 0:00:03]} 2. Nf3 {[%emt 0:00:09]} d6 {[%emt 0:00:05]} 3. Bb5+ {[%emt 0:00:08]} Bd7 {[%emt 0:00:07]} 4. Bxd7+ {[%emt 0:00:07]} Qxd7 {[%emt 0:00:04]} 5. O-O {[%emt 0:00:09]} Nc6 {[%emt 0:00:03]} 6. c3 {[%emt 0:00:12]} d5 {[%emt 0:00:05]} 7. exd5 {[%emt 0:00:07]} Qxd5 {[%emt 0:00:05]} 8. d4 {[%emt 0:00:10]} e6 {[%emt 0:00:07]} 9. Be3 {[%emt 0:00:13]} cxd4 {[%emt 0:00:05]} 10. Nxd4 {[%emt 0:00:20]} Nf6 {[%emt 0:00:43]} 11. Qa4 {[%emt 0:00:27]} Be7 {[%emt 0:00:33]} 12. Nxc6 {[%emt 0:03:15]} Qxc6 {[%emt 0:00:31]} 13. Qxc6+ {[%emt 0:02:24]} bxc6 {[%emt 0:00:02]} 14. Nd2 {[%emt 0:00:24]} O-O {[%emt 0:02:39]} 15. Nc4 {[%emt 0:02:17]} Nd5 {[%emt 0:01:16]} 16. Rfd1 {[%emt 0:00:45]} 1/2-1/2

[Event "SixDays One Year GM-B 2023"]
[Site "Budapest"]
[Date "2023.09.20"]
[Round "5.4"]
[White "Fodor, Tamas Jr."]
[Black "Yeganegi, Barad"]
[Result "1/2-1/2"]
[ECO "C45"]
[WhiteElo "2486"]
[BlackElo "2261"]
[Annotator "ChessBase"]
[PlyCount "35"]
[EventDate "2023.09.18"]
[EventType "tourn"]
[EventCountry "HUN"]
[SourceTitle "playchess.com"]
[Source "ChessBase"]
[SourceQuality "1"]
[TimeControl "5400+30"]

1. e4 {[%emt 0:00:03]} e5 {[%emt 0:00:43]} 2. Nf3 {[%emt 0:00:06]} Nc6 {[%emt 0:00:07]} 3. d4 {[%emt 0:00:06]} exd4 {[%emt 0:00:12]} 4. Nxd4 {[%emt 0:00:05]} Nf6 {[%emt 0:00:06]} 5. Nxc6 {[%emt 0:00:06]} bxc6 {[%emt 0:00:10]} 6. e5 {[%emt 0:00:07]} Qe7 {[%emt 0:00:17]} 7. Qe2 {[%emt 0:00:22]} Nd5 {[%emt 0:00:15]} 8. h4 {[%emt 0:00:39]} Qe6 {[%emt 0:16:27]} 9. g3 {[%emt 0:05:52]} d6 {[%emt 0:00:37]} 10. c4 {[%emt 0:05:34]} Nb6 {[%emt 0:00:52]} 11. exd6 {[%emt 0:01:19]} Bxd6 {[%emt 0:08:30]} 12. Nd2 {[%emt 0:09:34]} O-O {[%emt 0:03:48]} 13. Qxe6 {[%emt 0:07:51]} Bxe6 {[%emt 0:02:19]} 14. Be2 {[%emt 0:03:32]} Bb4 {[%emt 0:04:46]} 15. a3 {[%emt 0:01:18]} Bxd2+ {[%emt 0:03:23]} 16. Bxd2 {[%emt 0:00:10]} Bxc4 {[%emt 0:01:26]} 17. Bxc4 {[%emt 0:00:07]} Nxc4 {[%emt 0:00:08]} 18. O-O-O {[%emt 0:00:05]} 1/2-1/2

[Event "SixDays One Year GM-B 2023"]
[Site "Budapest"]
[Date "2023.09.20"]
[Round "5.5"]
[White "Baum, Jonasz"]
[Black "Varga, Zoltan"]
[Result "1/2-1/2"]
[ECO "B28"]
[WhiteElo "2429"]
[BlackElo "2363"]
[Annotator "ChessBase"]
[PlyCount "21"]
[EventDate "2023.09.18"]
[EventType "tourn"]
[EventCountry "HUN"]
[SourceTitle "playchess.com"]
[Source "ChessBase"]
[SourceQuality "1"]
[TimeControl "5400+30"]

1. e4 {[%emt 0:00:01]} c5 {[%emt 0:14:40]} 2. Nf3 {[%emt 0:00:06]} a6 {[%emt 0:00:15]} 3. c3 {[%emt 0:00:51]} g6 {[%emt 0:00:52]} 4. d4 {[%emt 0:00:37]} cxd4 {[%emt 0:00:06]} 5. cxd4 {[%emt 0:00:51]} d5 {[%emt 0:00:02]} 6. e5 {[%emt 0:03:39]} Bg4 {[%emt 0:00:53]} 7. Qb3 {[%emt 0:16:23]} Ra7 {[%emt 0:06:54]} 8. Be2 {[%emt 0:05:07]} Nc6 {[%emt 0:00:57]} 9. Be3 {[%emt 0:00:04]} e6 {[%emt 0:01:14]} 10. Nbd2 {[%emt 0:02:33]} Bb4 {[%emt 0:01:20]} 11. Rd1 {[%emt 0:14:00]} 1/2-1/2

[Event "SixDays One Year GM-B 2023"]
[Site "Budapest"]
[Date "2023.09.21"]
[Round "6.1"]
[White "Grover, Sahaj"]
[Black "Varga, Zoltan"]
[Result "1-0"]
[ECO "B38"]
[WhiteElo "2488"]
[BlackElo "2363"]
[Annotator "ChessBase"]
[PlyCount "53"]
[EventDate "2023.09.18"]
[EventType "tourn"]
[EventCountry "HUN"]
[SourceTitle "playchess.com"]
[Source "ChessBase"]
[SourceQuality "1"]
[TimeControl "5400+30"]

1. e4 {[%emt 0:00:04]} c5 {[%emt 0:08:24]} 2. Nf3 {[%emt 0:00:06]} g6 {[%emt 0:00:25]} 3. d4 {[%emt 0:00:31]} cxd4 {[%emt 0:00:05]} 4. Nxd4 {[%emt 0:00:04]} Bg7 {[%emt 0:00:08]} 5. c4 {[%emt 0:01:19]} Nc6 {[%emt 0:00:20]} 6. Be3 {[%emt 0:00:07]} Nf6 {[%emt 0:00:33]} 7. Nc3 {[%emt 0:00:05]} O-O {[%emt 0:00:31]} 8. Be2 {[%emt 0:00:05]} Nxd4 {[%emt 0:00:08]} 9. Bxd4 {[%emt 0:00:06]} d6 {[%emt 0:00:04]} 10. O-O {[%emt 0:00:19]} a5 {[%emt 0:03:33]} 11. Qc2 {[%emt 0:10:41]} a4 {[%emt 0:08:51]} 12. Rad1 {[%emt 0:08:52]} Qa5 {[%emt 0:00:38]} 13. f4 {[%emt 0:01:09]} a3 {[%emt 0:10:21]} 14. b3 {[%emt 0:00:40]} e5 {[%emt 0:06:55]} 15. fxe5 {[%emt 0:18:34]} dxe5 {[%emt 0:00:14]} 16. Be3 {[%emt 0:00:04]} Be6 {[%emt 0:00:32]} 17. Rd6 {[%emt 0:04:03]} Rfc8 {[%emt 0:06:14]} 18. Rb6 {[%emt 0:02:02]} Bh6 {[%emt 0:06:22]} 19. Bf2 {[%emt 0:01:28]} Bf8 {[%emt 0:03:17]} 20. Rxb7 {[%emt 0:12:15]} Bb4 {[%emt 0:00:07]} 21. Rb5 {[%emt 0:01:35]} Bxc3 {[%emt 0:00:07]} 22. Rxa5 {[%emt 0:00:05]} Bxa5 {[%emt 0:00:05]} 23. c5 {[%emt 0:01:14]} Rab8 {[%emt 0:03:39]} 24. Bc4 {[%emt 0:00:41]} Ng4 {[%emt 0:07:07]} 25. Bxe6 {[%emt 0:00:17]} fxe6 {[%emt 0:00:02]} 26. Qc4 {[%emt 0:00:08]} Nxf2 {[%emt 0:00:08]} 27. Qxe6+ {[%emt 0:00:05]} 1-0